Cogmind - Beta 14 *** ADVENTURER MODE // 2025.03.19 @ 18:33:21 Player: crsstev Result: Self-destructed Performance ------------- Evolutions (1) 500 Regions Visited (5) 1000 Robots Destroyed (51) 255 Value Destroyed (1212) 1212 Prototype IDs (3) 60 Alien Tech Used (0) 0 Bonus (913) 913 TOTAL SCORE: 3940 Bonus ------- Follower Combat Kills 347 Met Imprinter 300 Was Imprinted 300 Friendly Fire -34 Cogmind --------- Core Integrity 349/400 Matter 300/300 Energy 315/315 System Corruption 0% Temperature Cool (0) Movement Walking (270) Ox2 Location -6/Proximity Caves Parts ------- > --- POWER (2) -------- Reinforced Ion Engine Light Angular Momentum Engine > --- PROPULSION (2) --- Titanium Leg Wheel > --- UTILITY (2) ------ Cooling System Visual Processing Unit > --- WEAPON (3) ------- Riot Gun RU-N14's Throwing Claymores Phasing Sabre > --- INVENTORY (5) ---- Advanced Heat Sink Compact Matter Pod (150) Autogun Rocket Launcher Mini Grenade Launcher Peak State ------------ > --- POWER ------------ Reinforced Ion Engine Light Angular Momentum Engine > --- PROPULSION ------- Titanium Leg Wheel > --- UTILITY ---------- Cooling System Visual Processing Unit > --- WEAPON ----------- Riot Gun RU-N14's Throwing Claymores Phasing Sabre > --- INVENTORY -------- Improved Ion Engine Compact Matter Pod Autogun Rocket Launcher Mini Grenade Launcher [Rating: 32] Favorites ----------- Power Reinforced Ion Engine Engine Reinforced Ion Engine Propulsion Wheel Treads Light Treads Leg Titanium Leg Wheel Wheel Utility Cooling System Device Cooling System Storage Medium Matter Pod Processor Visual Processing Unit Protection Medium Armor Plating Weapon Autogun Energy Gun Riot Gun Ballistic Gun Autogun Launcher Rocket Launcher Special Weapon RU-N14's Throwing Claymores Slashing Weapon Phasing Sabre Build | -11 -10 -9 -9 -7 -6 ------- Run | Yrd Mat Mat Min Zio Pro Slots Evolved 2 | . . 2 . . . Power 1 | . . 1 . . . Propulsion . | . . . . . . Utility . | . . . . . . Weapon 1 | . . 1 . . . Parts Attached 35 | 8 2 12 6 7 . Power 5 | 1 1 2 . 1 . Engine 5 | 1 1 2 . 1 . Core . | . . . . . . Reactor . | . . . . . . Propulsion 11 | 3 . 5 2 1 . Treads 1 | . . 1 . . . Leg 1 | . . . . 1 . Wheel 9 | 3 . 4 2 . . Hover . | . . . . . . Flight . | . . . . . . Utility 6 | 2 . 2 2 . . Device 2 | 1 . . 1 . . Storage 2 | 1 . 1 . . . Processor 1 | . . . 1 . . Hackware . | . . . . . . Protection 1 | . . 1 . . . Artifact . | . . . . . . Weapon 13 | 2 1 3 2 5 . Energy Gun 4 | 1 1 1 . 1 . Energy Cannon . | . . . . . . Ballistic Gun 2 | 1 . 1 . . . Ballistic Cannon . | . . . . . . Launcher 2 | . . 1 . 1 . Special Weapon 3 | . . . 1 2 . Impact Weapon . | . . . . . . Slashing Weapon 2 | . . . 1 1 . Piercing Weapon . | . . . . . . Special Melee Weapon . | . . . . . . Unidentified Prototypes 1 | . . . . 1 . Parts Lost 1 | . . . 1 . . Power . | . . . . . . Propulsion . | . . . . . . Utility 1 | . . . 1 . . Weapon . | . . . . . . Highest Loss Streak 1 | . . . 1 . . To Critical Strikes . | . . . . . . Average Slot Usage (%) 98 | . 98 93 97 100 100 Engine 21 | . 14 20 22 22 22 Leg 4 | . . . . 6 11 Wheel 16 | . 28 15 22 15 11 Device 7 | . 14 . 2 11 11 Storage 4 | . 14 11 7 . . Processor 6 | . . . 2 11 11 Protection 3 | . . 10 7 . . Energy Gun 7 | . 19 13 . 6 11 Ballistic Gun 6 | . 8 10 11 4 . Launcher 5 | . . 8 11 4 . Special Weapon 6 | . . . 9 7 11 Slashing Weapon 6 | . . . 1 9 11 Peak Build Rating 32 | 7 8 14 17 32 32 Average Rating 20 | 4 7 12 14 26 32 On Entrance 13 | . 7 8 14 17 32 Naked Turns . | . . . . . . Heaviest Build 37 | 9 14 37 37 36 36 Greatest Support 26 | 20 20 26 26 20 17 Greatest Overweight (x) 3 | . . 3 1 2 2 Average Overweight (x) 1 | . . 1 . 1 2 Largest Inventory Capacity 5 | 5 5 5 5 5 5 Average Capacity 5 | 5 5 5 5 5 5 Most Carried 5 | 5 5 5 5 5 5 Average Carried 4 | 3 4 4 4 4 5 Final Capacity 5 | 5 5 5 5 5 5 Final Carried 5 | 4 3 4 4 5 5 Class Distribution -------------------- 47% | Mutant 24% | Tank 14% | Scavenger-Mutant 5% | Scavenger-Tank 4% | Scavenger-Skirmisher Dominant Class ---------------- Mutant | -10/Materials Tank | -9/Materials Tank | -9/Mines Mutant | -7/Zion Mutant | -6/Proximity Caves Resources | -11 -10 -9 -9 -7 -6 ----------- Run | Yrd Mat Mat Min Zio Pro Matter Collected 1308 | 387 22 570 259 . 70 Remotely . | . . . . . . Salvage Created 1251 | 153 150 513 357 55 23 Parts 110 | 14 16 45 30 2 3 Haulers Intercepted . | . . . . . . Recyclers Shooed 1 | . . 1 . . . Parts Field Recycled . | . . . . . . Retrieved Matter . | . . . . . . Parts Self-Destructed 8 | . . . . 2 6 Prevented 3 | . . . . . 3 Kills | -11 -10 -9 -9 -7 -6 ------- Run | Yrd Mat Mat Min Zio Pro Combat Hostiles Destroyed 33 | 1 5 10 13 1 3 Guns 15 | 1 5 4 5 . . Cannons 2 | . . . . 1 1 AOE 16 | . . 6 8 . 2 Classes Destroyed 12 | 3 2 4 2 1 . Worker 1 | 1 . . . . . Builder 2 | . . 2 . . . Tunneler 10 | 4 . 1 5 . . Recycler 1 | . . 1 . . . Watcher 5 | . 2 3 . . . Swarmer 9 | . 3 . 3 . 3 Grunt 19 | 1 2 8 8 . . Brawler 1 | . . 1 . . . Duelist 1 | . . . 1 . . Sentry 1 | . . 1 . . . Hunter 1 | . . . . 1 . Assembled 1 | . . . 1 . . Best Kill Streak 14 | 5 3 4 14 1 3 Combat Bots Only 8 | 1 3 3 8 1 3 Max Kills in Single Turn 3 | 1 1 2 3 1 3 Gunslinging . | . . . . . . Exploded 2 | . . 2 2 . 2 Melee . | . . . . . . Uniques/NPCs Destroyed . | . . . . . . Combat | -11 -10 -9 -9 -7 -6 -------- Run | Yrd Mat Mat Min Zio Pro Hostile Shots Fired 93 | 1 28 21 23 2 18 Missed 32 | . 8 8 9 2 5 Damage Taken 734 | 8 153 177 215 . 181 Core 80 | . 29 9 14 . 28 Absorbed by Shields . | . . . . . . Ignored by Resistances 219 | 3 50 52 62 . 52 Regen/Repaired (Parts) 5 | . . 5 . . . Core Remaining (%) 94 | 100 88 . . . . Volleys Fired 74 | 7 17 20 24 2 4 Largest 3 | 2 2 3 3 1 2 Hottest 156 | 70 90 113 156 . 50 Shots Fired 154 | 14 34 60 39 2 5 Gun 113 | 14 34 43 18 . 4 Cannon . | . . . . . . Launcher 27 | . . 17 10 . . Special 14 | . . . 11 2 1 Kinetic 60 | 7 15 20 18 . . Thermal 37 | 7 16 3 11 . . Explosive 30 | . . 17 10 2 1 Electromagnetic 27 | . 3 20 . . 4 Robot Hit Streak 13 | 9 13 11 11 1 3 Robot Miss Streak 2 | . 1 2 1 2 2 Penetration Max . | . . . . . . Secondary Targets . | . . . . . . Shots Hit Robots 89 | 9 24 35 18 1 2 Core Hits 71 | 7 10 26 24 2 2 Critical Kills 1 | . 1 . . . . Critical Parts Destroyed . | . . . . . . Critical Strikes 1 | . 1 . . . . Destroy 1 | . 1 . . . . Melee Attacks . | . . . . . . Impact . | . . . . . . Slashing . | . . . . . . Piercing . | . . . . . . Sneak Attacks . | . . . . . . Combat Hostiles . | . . . . . . Follow-up Attacks . | . . . . . . Damage Inflicted 3140 | 110 270 1488 860 104 308 Guns 990 | 110 270 396 191 . 23 Cannons . | . . . . . . Explosions 2065 | . . 1092 669 59 245 Melee . | . . . . . . Ramming . | . . . . . . Kinetic 526 | 24 94 217 191 . . Thermal 445 | 86 139 220 . . . Explosive 1883 | . . 910 669 59 245 Electromagnetic 201 | . 37 141 . . 23 Impact . | . . . . . . Slashing 85 | . . . . 45 40 Piercing . | . . . . . . Highest Corruption 1 | . 1 . . . . Average Corruption 1 | . 1 . . . . Corruption Purged . | . . . . . . Corruption Blocked . | . . . . . . Effects 1 | . 1 . . . . Misfires 1 | . 1 . . . . Overload Shots . | . . . . . . Overflow Damage 89 | . . 80 3 . 6 Projectiles . | . . . . . . Explosions 89 | . . 80 3 . 6 Melee . | . . . . . . Knockbacks . | . . . . . . Impact . | . . . . . . Kinetic . | . . . . . . Secondary . | . . . . . . Self-Inflicted Damage 156 | . . 59 97 . . Shots 5 | . . 2 3 . . Rammed 1 | . . . 1 . . Targets Rammed 1 | . . . 1 . . Kicked . | . . . . . . Crushed . | . . . . . . Highest Temperature 320 | 70 244 210 320 . . Average Temperature 82 | 31 88 74 100 . . Received Heat Transfer 261 | 6 84 84 69 . 18 Effects 1 | . . . 1 . . Interference 1 | . . . 1 . . Siege Activations . | . . . . . . Robots Corrupted . | . . . . . . Combat Hostiles . | . . . . . . Parts Fried 1 | . 1 . . . . Impact Corruptions . | . . . . . . Robots Melted . | . . . . . . Combat Hostiles . | . . . . . . Parts Melted 2 | 2 . . . . . Heat Transferred 977 | 259 407 311 . . . Parts Sabotaged . | . . . . . . Parts Stolen . | . . . . . . Parts Stripped . | . . . . . . Power Chain Reactions 2 | . . 2 . . . Alert | -11 -10 -9 -9 -7 -6 ------- Run | Yrd Mat Mat Min Zio Pro Peak Influence 408 | 45 179 408 336 . . Initial 134 | . 25 64 134 . . Average 176 | 15 126 214 178 . . Maximum Alert Level 2 | . . 2 1 . . Low Security (%) 61 | 100 100 47 61 . . Level 1 36 | . . 47 38 . . Level 2 2 | . . 5 . . . Level 3 . | . . . . . . Level 4 . | . . . . . . Level 5 . | . . . . . . High Security . | . . . . . . Max Security . | . . . . . . Squads Dispatched 3 | . . 2 . . 1 Investigation 2 | . . 2 . . . Extermination . | . . . . . . Reinforcement . | . . . . . . Assault 1 | . . . . . 1 Garrison . | . . . . . . Intercept . | . . . . . . Searches Triggered . | . . . . . . Construction Impeded . | . . . . . . Haulers Reinforced . | . . . . . . Active Scanning Responses . | . . . . . . Cargo Convoy Interrupts . | . . . . . . Stealth | -11 -10 -9 -9 -7 -6 --------- Run | Yrd Mat Mat Min Zio Pro Distress Signals . | . . . . . . Communications Jammed . | . . . . . . Distress Signals . | . . . . . . Times Spotted 51 | 1 7 12 16 1 14 Peak Tracking Total 10 | 1 4 3 3 1 10 Tactical Retreats 1 | . . . . . 1 Traps | -11 -10 -9 -9 -7 -6 ------- Run | Yrd Mat Mat Min Zio Pro Traps Triggered 1 | . 1 . . . . Indirectly . | . . . . . . Trap Hack Attempts . | . . . . . . Triggered . | . . . . . . Disarmed . | . . . . . . Reprogrammed . | . . . . . . Reused . | . . . . . . Traps Extracted . | . . . . . . Installed . | . . . . . . Triggered 2 | . . . . . 2 Machines | -11 -10 -9 -9 -7 -6 ---------- Run | Yrd Mat Mat Min Zio Pro Machines Disabled 5 | . . 3 1 1 . Max in Single Turn 2 | . . 2 1 1 . Machines Repaired . | . . . . . . Machines Dismantled . | . . . . . . Machines Sabotaged . | . . . . . . Overloaded Fab Kills . | . . . . . . Hacking | -11 -10 -9 -9 -7 -6 --------- Run | Yrd Mat Mat Min Zio Pro Machines Accessed 5 | . . 5 . . . Terminals 4 | . . 4 . . . Fabricators . | . . . . . . Repair Stations 1 | . . 1 . . . Recycling Units . | . . . . . . Scanalyzers . | . . . . . . Garrison Access . | . . . . . . Total Hacks 25 | . . 25 . . . Successful 15 | . . 15 . . . Failed 10 | . . 10 . . . Catastrophic 1 | . . 1 . . . Database Lockouts . | . . . . . . Manual . | . . . . . . Terminals 18 | . . 18 . . . Fabricators . | . . . . . . Repair Stations 7 | . . 7 . . . Recycling Units . | . . . . . . Scanalyzers . | . . . . . . Garrison Access . | . . . . . . Terminal Hacks 9 | . . 9 . . . Record 4 | . . 4 . . . Prototype ID Bank 1 | . . 1 . . . Branch Access Points 1 | . . 1 . . . Alert Level 1 | . . 1 . . . Transport Status 1 | . . 1 . . . Hauler Manifests 1 | . . 1 . . . Fabricator Hacks . | . . . . . . Repair Station Hacks 6 | . . 6 . . . Scan Component 3 | . . 3 . . . Repair 3 | . . 3 . . . Recycling Unit Hacks . | . . . . . . Scanalyzer . | . . . . . . Garrison Access Hacks . | . . . . . . Unauthorized Hacks . | . . . . . . Terminals . | . . . . . . Fabricators . | . . . . . . Repair Stations . | . . . . . . Recycling Units . | . . . . . . Scanalyzers . | . . . . . . Garrison Access . | . . . . . . Data Cores Recovered . | . . . . . . Used . | . . . . . . Hacking Detections 5 | . . 5 . . . Full Trace Events 4 | . . 4 . . . Feedback Events . | . . . . . . Feedback Blocked . | . . . . . . Robot Schematics Acquired 3 | . . . . 3 . Robots Built . | . . . . . . Authchips . | . . . . . . Time . | . . . . . . Total Robot Build Rating . | . . . . . . Part Schematics Acquired 15 | . . . . 15 . Parts Built . | . . . . . . Authchips . | . . . . . . Time . | . . . . . . Total Part Build Rating . | . . . . . . Parts Repaired 3 | . . 3 . . . Time 78 | . . 78 . . . Parts Recycled . | . . . . . . Recycled Matter . | . . . . . . Retrieved Matter . | . . . . . . Retrieved Components . | . . . . . . Parts Scanalyzed . | . . . . . . Part Schematics Acquired . | . . . . . . Parts Damaged . | . . . . . . Bothacking | -11 -10 -9 -9 -7 -6 ------------ Run | Yrd Mat Mat Min Zio Pro Used RIF Installer . | . . . . . . Robots Hacked . | . . . . . . Non-combat . | . . . . . . Combat . | . . . . . . Robot Hacks Applied . | . . . . . . Relay Couplers Released . | . . . . . . Fabnet Peak Effective % . | . . . . . . Robots Rewired . | . . . . . . Allies Hacked . | . . . . . . Hacks Repelled . | . . . . . . Allies | -11 -10 -9 -9 -7 -6 -------- Run | Yrd Mat Mat Min Zio Pro Total Allies 5 | . . . 1 4 . Largest Group 4 | . . . 1 4 4 Highest-Rated Group 154 | . . . 31 154 154 Highest-Rated Ally 41 | . . . 31 41 41 Total Orders . | . . . . . . Ally Attacks 34 | . . . 5 . 29 Total Damage 923 | . . . 82 . 841 Kills 13 | . . . 2 . 11 Allies Corrupted . | . . . . . . Allies Melted . | . . . . . . Intel | -11 -10 -9 -9 -7 -6 ------- Run | Yrd Mat Mat Min Zio Pro Robot Analysis Total . | . . . . . . Derelict Logs Recovered 1 | . . . 1 . . Drone Launches . | . . . . . . Drone Recoveries . | . . . . . . Exploration | -11 -10 -9 -9 -7 -6 ------------- Run | Yrd Mat Mat Min Zio Pro Turns Passed 3674 | 132 141 731 621 1550 499 Spaces Moved 2387 | 120 103 526 477 980 181 Core 27 | 24 . 3 . . . Treads 64 | . . 64 . . . Legs 560 | . . . . 379 181 Wheels 1736 | 96 103 459 477 601 . Hover . | . . . . . . Flight . | . . . . . . Fastest Speed 50 | 50 80 80 90 95 270 Average Speed 137 | 74 80 120 102 153 270 Slowest Speed 270 | 80 80 240 105 270 270 Overloaded Moves . | . . . . . . Propulsion Burnouts . | . . . . . . Robots Hopped . | . . . . . . Cave-ins Triggered . | . . . . . . Exploration Rate (%) 43 | 7 18 41 66 89 42 Regions Visited 5 Branch Regions 3 Pre-discovered Areas 3 | . . . 1 2 . Known Exits Taken 1 | . . 1 . . . Unknown Exits Taken 4 | 1 1 . 1 1 . Scrap Searched 3 | . . . 1 2 . Spaces Dug 1 | . . . 1 . . Terrain Destroyed 309 | . . 188 83 23 15 Melee . | . . . . . . Projectile 1 | . . . 1 . . AOE 308 | . . 188 82 23 15 Terrain Rammed . | . . . . . . Walls Destroyed . | . . . . . . Machines Disabled . | . . . . . . Actions | -11 -10 -9 -9 -7 -6 --------- Run | Yrd Mat Mat Min Zio Pro Total 2638 | 152 134 585 556 1025 186 Wait 62 | . . . 38 23 1 Move 2382 | 119 102 525 476 979 181 Hop . | . . . . . . Pick Up 50 | 14 6 17 6 7 . Fast Attach . | . . . . . . Attach 25 | 7 2 9 3 4 . Detach 1 | . . . . 1 . Swap 10 | 1 . 3 3 3 . Drop 33 | 4 7 11 5 6 . Fire 74 | 7 17 20 24 2 4 Melee . | . . . . . . Ram 1 | . . . 1 . . Kick . | . . . . . . Crush . | . . . . . . Escape Stasis . | . . . . . . Rewire . | . . . . . . Trap . | . . . . . . Miscellaneous . | . . . . . . Route ------- -11/Scrapyard -10/Materials -9/Materials -9/Mines (discovered 2 exits: [*Mat] / *Zio) -7/Zion -6/Proximity Caves History --------- Turn | Location | Event 2 | -11/Scrapyard | Met Revision 17 83 | -11/Scrapyard | Discovered new exit (range 8) 133 | -11/Scrapyard | Entered Materials 178 | -10/Materials | Discovered new exit (range 16) 274 | -10/Materials | Entered another Materials area 274 | -9/Materials | Evolved 2 slots: Power x1, Weapon x1 299 | -9/Materials | Repaired Med. Laser 300 | -9/Materials | Build established: Mutant 305 | -9/Materials | Repaired Wheel 331 | -9/Materials | Repaired Wheel? 610 | -9/Materials | Build established: Tank 809 | -9/Materials | Discovered new exit (range 15) 926 | -9/Materials | Identified exit to Mines 1005 | -9/Materials | Entered Mines 1008 | -9/Mines | Received a Mining Laser from a helpful Derelict 1046 | -9/Mines | Learned location of Storage (-7) 1131 | -9/Mines | Met a Derelict bent on vengeance 1244 | -9/Mines | Excavation squad dispatched 1244 | -9/Mines | A large section of the Mines collapsed 1494 | -9/Mines | Excavation squad dispatched 1567 | -9/Mines | A Derelict revealed a hidden shortcut to a safe place 1569 | -9/Mines | Discovered new exit (range 18) 1577 | -9/Mines | Destroyed 8 combat bots 1626 | -9/Mines | Entered Zion 1730 | -7/Zion | Given A8's code to call for help 1769 | -7/Zion | Learned location of Recycling (-7) 1845 | -7/Zion | Build established: Scavenger-Mutant 1932 | -7/Zion | Met Imprinter 1982 | -7/Zion | Imprinted 1984 | -7/Zion | Declared Zion's savior 2078 | -7/Zion | Found Prototype Special Weapon 2085 | -7/Zion | Identified RU-N14's Throwing Claymores 2093 | -7/Zion | Found RU-N14's Throwing Claymores 2479 | -7/Zion | Learned location of Warlord (-4) 2511 | -7/Zion | Build established: Mutant 3084 | -7/Zion | Discovered new exit (range 17) 3176 | -7/Zion | Entered Proximity Caves 3176 | -6/Proximity Caves | Accompanied by 4 allies 3216 | -6/Proximity Caves | Attracted the attention of an 0b10 checkpoint 3642 | -6/Proximity Caves | Attracted the attention of an 0b10 outpost 3675 | -6/Proximity Caves | Self-destructed Last Messages --------------- S-27 Virus destroyed. Chain reaction triggered in Lgt. Nuclear Core. S-27 Virus destroyed. S-27 Virus misfires. KR-OH4(M) destroyed. S-27 Virus destroyed. G-50 Soldier destroyed. 22-2LC(M) Med. Treads severed. SA-GLW(M) destroyed. VTOL Module fries itself beyond repair. OM-UQ4(M) destroyed. L-41 Fighter suffers critical hit (Burn). L-41 Fighter heat damages Imp. Deuterium Engine, Carbon-fiber Leg, Imp. Melee Analysis Suite. L-41 Fighter critical meltdown. B-48 Gladiator destroyed. Lgt. Nuclear Core fries itself beyond repair. VTOL Module self-destruct mechanism malfunctions. Lgt. Angular Momentum Engine fries itself beyond repair. S-27 Virus destroyed. Map ----- +----------------------------------------------------+ | ?????????????????????????????????????????????????? | | ?????????????????????????????????????????????????? | | ?????????????????????????????????????????????????? | | ?????????????????????????????????????????????????? | | ?????????????????????????????????????????????????? | | ?????????????????????????????????????????????????? | | ?????????????????????????????????????????????????? | | ?????????????????????????????????????????????????? | | ???????????????? ????????????????????????????????? | | ???????????????? ##??????? ??????????????????????? | | ???????????????? ??????? ??????????????????????? | | ???????????????? #?????? #????????????????????? | | ????????????????# #?????? #????????????????????? | | ????????????????# #?????# ###??????????????????? | | ????????????????# ###### #??????????????????? | | ????????????????# ## ###????????????????? | | ????????????????# ## ????????????????? | | ????????????????# ## #?????????????????? | | ???????????????## ## """ """ #?????#???????????? | | ???????????????# ## """ """ ??? ##??????????? | | ???????????????# ## """ "" #?? ???????????? | | ???????????????? ## " " ### ????????????? | | ????????????????# #;M= """ ??????????????? | | ???????????????## #=**%%""" ##????????????????? | | ???????????????# #!=%= "" #????????????????? | | ???????????????# %!%!!@ #????????????????? | | ???????????????# #Y*%=# # g#???????????? | | ??????????##??### #|%#### #?? b#???????????? | | ??????????# ### # ! #??? #???? "#???????????? | | ?????????## # #?? ????????????????????? | | ???????### ### #??# ???????????????????? | | ???????# ###?? ?? ??????????????????? | | ???????## # ###????# ?? ?????????????????? | | ????????# ## #??????? ###?? ????????????????? | | ????????##??## #???????? #???? ???????????????? | | ?????????????# #??????? #?????## ??????????????? | | ????????????## #??????# #???????# ?????????????? | | ???????????## ##????# #??????????????????????? | | ???????????# #???# #??????????????????????? | | ???????????## #### ### #??????????????????? | | ????????????### #?????????????????? | | ??????######### ## ???????????????? | | ?????## ##??? ???????????????? | | ???### ## ### ??????????????? | | ??## ??????????????? | | ??# "" ??????????????? | | ??# """"" ##?????????????????? | | ### ### """" ##??????????????????? | | #?# " #???????????????????? | | ### "" "" #??????????????????? | +----------------------------------------------------+ Best States ------------- Heat Dissipation 50 Energy Generation 25 Energy Capacity 430 Matter Stores 500 Matter Capacity 500 Sight Range 18 Terrain Scan Density 10 Armor Coverage 225 Resistance: KI 20 Resistance: TH 20 Resistance: EX 20 Resistance: EM 20 Resistance: I 20 Resistance: S 20 Resistance: P 20 Evasion (%) 50 Recoil Reduction 1 Offensive Hacking 10 Item Schematics ----------------- Imp. Melee Analysis Suite | -7/Zion | Archive Adv. Sensor Array | -7/Zion | Archive Power Maul | -7/Zion | Archive Stasis Canceller | -7/Zion | Archive Lgt. Fission Core | -7/Zion | Archive Imp. Deuterium Engine | -7/Zion | Archive Spear | -7/Zion | Archive Tesla Rifle | -7/Zion | Archive EM Disruption Field | -7/Zion | Archive Lightning Gun | -7/Zion | Archive Arm. Leg | -7/Zion | Archive Hvy. Rocket Launcher | -7/Zion | Archive Hvy. Pick | -7/Zion | Archive Imp. Field Recycling Unit | -7/Zion | Archive Hyp. Gauss Cannon | -7/Zion | Archive Robot Schematics ------------------ R-06 Scavenger | -7/Zion | Archive H-55 Commando | -7/Zion | Archive X-62 Marksman | -7/Zion | Archive Fabricated ------------ Nothing Alien Tech Used ----------------- None Achievements -------------- Crack Shot Let's See Who's Tougher One Hack Too Far Part-time Mechanic Remodeling Risk Taker Robot Respite Shopping List The One Tourist Challenges ------------ None Game ------ Seed KineticColdMallet Manual? 0 Play Time 01:12:53 Cumulative 1.1 hours Start 2025.03.18 @ 21:12:12 End 2025.03.19 @ 18:33:21 Sessions 5 Manual Loads 0 Difficulty Adventurer Special Mode None Game No. 1 Rogue 0 Adventurer 1 Explorer 0 Win Type - Total 0 Types 0/0/0/0/0/0/0/0/0 Lore% 2 Gallery% 2 Achievement% 3 Wizard Run 0 Options --------- Layout 0 ASCII 0 Keyboard 0 Movement Mouse Keybinds 0 Fullscreen 2 Font 24/Smallcaps Map View 76x50 Zoom Use 0% Tactical HUD 0 Map Filters NONE Filters NONE Steam 1 RUN: f82be23d-1956-443e-b0c9-85c66adb432c